[Event "Asian Amateur Rapid 2024"]
[Site "Al Ain"]
[Date "2024.12.15"]
[Round "4.32"]
[White "Khabdes, Bakytzhan"]
[Black "Ibrahim Imran Saeed"]
[Result "0-1"]
[ECO "C84"]
[WhiteElo "1437"]
[BlackElo "1681"]
[Annotator "NA COMBH"]
[PlyCount "110"]
[EventDate "2024.12.15"]
[EventType "swiss"]
[EventCountry "UAE"]
[SourceTitle "playchess.com"]
[Source "ChessBase"]
[SourceQuality "1"]
[TimeControl "900+10"]

1. e4 {[%emt 0:00:37]} e5 {[%emt 0:00:03]} 2. Nf3 {[%emt 0:00:02]} Nc6 {[%emt 0:00:02]} 3. Bb5 {[%emt 0:00:02]} a6 {[%emt 0:00:19]} 4. Ba4 {[%emt 0:00:02]} Nf6 {[%emt 0:00:05]} 5. O-O {[%emt 0:00:20]} Be7 {[%emt 0:00:02]} 6. c3 {[%emt 0:00:13]} b5 {[%emt 0:00:34]} 7. Bb3 {[%emt 0:00:05]} O-O {[%emt 0:00:06]} 8. d4 {[%emt 0:00:13]} exd4 {[%emt 0:01:23]} 9. e5 {[%emt 0:00:21]} Ne8 {[%emt 0:00:58]} 10. cxd4 {[%emt 0:00:02]} d6 {[%emt 0:00:05]} 11. Nc3 {[%emt 0:00:20]} Bg4 {[%emt 0:00:37]} 12. h3 {[%emt 0:01:18]} Bxf3 {[%emt 0:00:32]} 13. gxf3 {[%emt 0:00:48]} dxe5 {[%emt 0:00:08]} 14. dxe5 {[%emt 0:00:37]} Nxe5 {[%emt 0:00:09]} 15. Qxd8 {[%emt 0:00:03]} Rxd8 {[%emt 0:00:04]} 16. Kg2 {[%emt 0:00:09]} Rd6 {[%emt 0:02:14]} 17. Bf4 {[%emt 0:00:05]} Rg6+ {[%emt 0:00:04]} 18. Bg3 {[%emt 0:00:19]} h5 {[%emt 0:00:09]} 19. Bc2 {[%emt 0:00:03]} f5 {[%emt 0:00:13]} 20. Kh1 {[%emt 0:00:31]} Nxf3 {[%emt 0:00:19]} 21. a4 {[%emt 0:00:18]} h4 {[%emt 0:00:33]} 22. Bf4 {[%emt 0:00:15]} Bd6 {[%emt 0:00:56]} 23. Nd5 {[%emt 0:00:02]} Bxf4 {[%emt 0:00:33]} 24. Ne7+ {[%emt 0:00:16]} Kh7 {[%emt 0:00:01]} 25. Nxg6 {[%emt 0:00:09]} Kxg6 {[%emt 0:00:02]} 26. axb5 {[%emt 0:00:05]} axb5 {[%emt 0:00:31]} 27. Ra3 {[%emt 0:00:12]} Nd4 {[%emt 0:01:27]} 28. Rg1+ {[%emt 0:00:16]} Kf6 {[%emt 0:00:05]} 29. Ra6+ {[%emt 0:00:09]} Nd6 {[%emt 0:00:14]} 30. Bd1 {[%emt 0:00:11]} Re8 {[%emt 0:00:58]} 31. Ra7 {[%emt 0:00:04]} Re7 {[%emt 0:00:13]} 32. Ra8 {[%emt 0:00:17]} Ne4 {[%emt 0:00:08]} 33. Kg2 {[%emt 0:00:21]} Bd6 {[%emt 0:00:54]} 34. Rf8+ {[%emt 0:00:13]} Ke6 {[%emt 0:00:05]} 35. Rb8 {[%emt 0:00:08]} Ke5 {[%emt 0:00:53]} 36. Re1 {[%emt 0:00:05]} Kf4 {[%emt 0:00:06]} 37. Rd8 {[%emt 0:00:18]} Re6 {[%emt 0:00:30]} 38. Bh5 {[%emt 0:00:09]} Rh6 {[%emt 0:00:08]} 39. Bf7 {[%emt 0:00:12]} Rf6 {[%emt 0:00:20]} 40. Bh5 {[%emt 0:00:16]} g6 {[%emt 0:00:25]} 41. Bd1 {[%emt 0:00:04]} Ne6 {[%emt 0:00:13]} 42. Rh8 {[%emt 0:00:09]} Kg5 {[%emt 0:00:13]} 43. Bb3 {[%emt 0:00:09]} Nf4+ {[%emt 0:00:03]} 44. Kf3 {[%emt 0:00:43]} Nd2+ {[%emt 0:00:10]} 45. Ke3 {[%emt 0:11:29]} Bc5+ {[%emt 0:00:35]} 46. Kxd2 {[%emt 0:00:00]} Bb4+ {[%emt 0:00:09]} 47. Kd1 {[%emt 0:00:00]} Rd6+ {[%emt 0:00:04]} 48. Kc2 {[%emt 0:00:00]} Bxe1 {[%emt 0:00:03]} 49. Rh7 {[%emt 0:00:00]} c6 {[%emt 0:00:23]} 50. Bg8 {[%emt 0:00:00]} Bxf2 {[%emt 0:00:09]} 51. Rc7 {[%emt 0:00:00]} Nxh3 {[%emt 0:00:09]} 52. Bf7 {[%emt 0:00:00]} Nf4 {[%emt 0:00:17]} 53. Be8 {[%emt 0:00:00]} Ne6 {[%emt 0:00:11]} 54. Rc8 {[%emt 0:00:00]} Kg4 {[%emt 0:00:22]} 55. Kb3 {[%emt 0:00:00] Check Result:-#14} h3 {[%emt 0:00:17]} 0-1

[Event "Asian Amateur Rapid 2024"]
[Site "Al Ain"]
[Date "2024.12.15"]
[Round "4.33"]
[White "Kanev, Evgeny"]
[Black "Mohammed Saeed Alshamsi"]
[Result "1-0"]
[ECO "A08"]
[WhiteElo "1785"]
[BlackElo "1535"]
[Annotator "NA COMBH"]
[PlyCount "73"]
[EventDate "2024.12.15"]
[EventType "swiss"]
[EventCountry "UAE"]
[SourceTitle "playchess.com"]
[Source "ChessBase"]
[SourceQuality "1"]
[TimeControl "900+10"]

1. Nf3 {[%emt 0:00:01]} d5 {[%emt 0:00:02]} 2. g3 {[%emt 0:00:02]} c5 {[%emt 0:00:02]} 3. Bg2 {[%emt 0:00:01]} Nc6 {[%emt 0:00:01]} 4. O-O {[%emt 0:00:02]} e5 {[%emt 0:00:02]} 5. d3 {[%emt 0:00:02]} Nf6 {[%emt 0:00:03]} 6. Nfd2 {[%emt 0:00:01]} Bd6 {[%emt 0:00:16]} 7. Nc3 {[%emt 0:00:02]} Be6 {[%emt 0:00:13]} 8. e4 {[%emt 0:00:01]} d4 {[%emt 0:00:18]} 9. Ne2 {[%emt 0:00:02]} O-O {[%emt 0:00:29]} 10. f4 {[%emt 0:00:01]} Bg4 {[%emt 0:00:18]} 11. f5 {[%emt 0:00:21]} Nb4 {[%emt 0:00:34]} 12. Nf3 {[%emt 0:00:12]} Re8 {[%emt 0:00:41]} 13. h3 {[%emt 0:00:07]} Bxf3 {[%emt 0:00:02]} 14. Bxf3 {[%emt 0:00:02]} b5 {[%emt 0:00:16]} 15. a3 {[%emt 0:00:08]} Nc6 {[%emt 0:00:01]} 16. g4 {[%emt 0:00:01]} c4 {[%emt 0:00:22]} 17. g5 {[%emt 0:00:02]} cxd3 {[%emt 0:00:36]} 18. cxd3 {[%emt 0:00:03]} Nd7 {[%emt 0:00:07]} 19. Ng3 {[%emt 0:00:13]} b4 {[%emt 0:00:16]} 20. Bh5 {[%emt 0:03:07]} g6 {[%emt 0:00:29]} 21. Bg4 {[%emt 0:00:58]} Nc5 {[%emt 0:00:22]} 22. f6 {[%emt 0:00:43]} bxa3 {[%emt 0:00:17]} 23. bxa3 {[%emt 0:00:11]} Rb8 {[%emt 0:00:23]} 24. Nf5 {[%emt 0:00:05]} Bf8 {[%emt 0:00:17]} 25. h4 {[%emt 0:00:52]} Rb3 {[%emt 0:00:39]} 26. Rf3 {[%emt 0:00:01]} Qb6 {[%emt 0:00:58]} 27. h5 {[%emt 0:00:44]} Qa6 {[%emt 0:00:17]} 28. hxg6 {[%emt 0:01:12]} hxg6 {[%emt 0:00:36]} 29. Qe1 {[%emt 0:02:57]} Rxd3 {[%emt 0:00:31]} 30. Qh4 {[%emt 0:00:24]} Rxf3 {[%emt 0:01:07]} 31. Bxf3 {[%emt 0:00:20]} gxf5 {[%emt 0:00:36]} 32. exf5 {[%emt 0:00:01]} e4 {[%emt 0:00:45]} 33. g6 {[%emt 0:00:07]} fxg6 {[%emt 0:00:21]} 34. fxg6 {[%emt 0:01:50]} Qb7 {[%emt 0:00:43]} 35. f7+ {[%emt 0:00:14]} Qxf7 {[%emt 0:00:07]} 36. gxf7+ {[%emt 0:00:03]} Kxf7 {[%emt 0:00:02] Check Result:17.91} 37. Bh5+ {[%emt 0:00:00]} 1-0

[Event "Asian Amateur Rapid 2024"]
[Site "Al Ain"]
[Date "2024.12.15"]
[Round "4.35"]
[White "Mohammed Hamad Alkhemeiri"]
[Black "Lee, Onbin"]
[Result "1-0"]
[ECO "B77"]
[WhiteElo "1482"]
[BlackElo "1686"]
[Annotator "NA COMBH"]
[PlyCount "87"]
[EventDate "2024.12.15"]
[EventType "swiss"]
[EventCountry "UAE"]
[SourceTitle "playchess.com"]
[Source "ChessBase"]
[SourceQuality "1"]
[TimeControl "900+10"]

1. e4 {[%emt 0:00:02]} c5 {[%emt 0:00:01]} 2. Nf3 {[%emt 0:00:07]} d6 {[%emt 0:00:01]} 3. d4 {[%emt 0:00:02]} cxd4 {[%emt 0:00:01]} 4. Nxd4 {[%emt 0:00:02]} Nf6 {[%emt 0:00:02]} 5. Nc3 {[%emt 0:00:02]} g6 {[%emt 0:00:01]} 6. Be3 {[%emt 0:00:08]} Bg7 {[%emt 0:00:01]} 7. f3 {[%emt 0:00:05]} O-O {[%emt 0:00:02]} 8. Bc4 {[%emt 0:00:19]} Nc6 {[%emt 0:00:05]} 9. Qd2 {[%emt 0:00:03]} Nxd4 {[%emt 0:00:16]} 10. Bxd4 {[%emt 0:00:12]} Be6 {[%emt 0:00:02]} 11. Bb3 {[%emt 0:02:39]} Qa5 {[%emt 0:00:02]} 12. Nd5 {[%emt 0:02:40]} Qxd2+ {[%emt 0:00:06]} 13. Kxd2 {[%emt 0:00:02]} Bxd5 {[%emt 0:00:03]} 14. Bxf6 {[%emt 0:00:16]} Bxb3 {[%emt 0:01:22]} 15. Bxg7 {[%emt 0:01:02]} Kxg7 {[%emt 0:00:01]} 16. axb3 {[%emt 0:00:01]} Rfc8 {[%emt 0:00:37]} 17. Ra4 {[%emt 0:00:12]} a5 {[%emt 0:00:09]} 18. Rha1 {[%emt 0:00:17]} b6 {[%emt 0:00:08]} 19. b4 {[%emt 0:00:05]} Rab8 {[%emt 0:00:07]} 20. bxa5 {[%emt 0:10:14]} bxa5 {[%emt 0:00:04]} 21. b3 {[%emt 0:00:00]} Rc7 {[%emt 0:00:44]} 22. Rxa5 {[%emt 0:00:00]} Rbc8 {[%emt 0:00:12]} 23. R1a2 {[%emt 0:00:00]} h5 {[%emt 0:00:14]} 24. Ra7 {[%emt 0:00:00]} Kf6 {[%emt 0:00:16]} 25. Rxc7 {[%emt 0:00:00]} Rxc7 {[%emt 0:00:01]} 26. Ra5 {[%emt 0:00:00]} h4 {[%emt 0:00:22]} 27. g3 {[%emt 0:00:00]} hxg3 {[%emt 0:00:56]} 28. hxg3 {[%emt 0:00:00]} Ke6 {[%emt 0:00:04]} 29. c4 {[%emt 0:00:00]} f5 {[%emt 0:01:40]} 30. exf5+ {[%emt 0:00:00]} gxf5 {[%emt 0:00:02]} 31. f4 {[%emt 0:00:00]} Kf6 {[%emt 0:00:10]} 32. Rd5 {[%emt 0:00:00]} Rc6 {[%emt 0:00:22]} 33. Kc3 {[%emt 0:00:00]} e6 {[%emt 0:01:00]} 34. Rd3 {[%emt 0:00:00]} d5 {[%emt 0:01:03]} 35. Kd4 {[%emt 0:00:00]} dxc4 {[%emt 0:00:14]} 36. bxc4 {[%emt 0:00:00]} Rc8 {[%emt 0:00:30]} 37. Re3 {[%emt 0:00:00]} Rc7 {[%emt 0:00:32]} 38. c5 {[%emt 0:00:00]} Ke7 {[%emt 0:00:38]} 39. Rc3 {[%emt 0:00:00]} Kf6 {[%emt 0:00:03]} 40. c6 {[%emt 0:00:00]} Ke7 {[%emt 0:00:55]} 41. Ke5 {[%emt 0:00:00]} Kf7 {[%emt 0:00:01]} 42. Kd6 {[%emt 0:00:00]} Rc8 {[%emt 0:00:24]} 43. c7 {[%emt 0:00:00]} Ke8 {[%emt 0:00:27] Check Result:#9} 44. Kxe6 {[%emt 0:00:00]} 1-0

[Event "Asian Amateur Rapid 2024"]
[Site "Al Ain"]
[Date "2024.12.15"]
[Round "4.36"]
[White "KHALID ALHAWAY"]
[Black "Muhammad Saifan Noushad Ibrahi"]
[Result "0-1"]
[ECO "B06"]
[WhiteElo "1529"]
[BlackElo "1534"]
[Annotator "NA COMBH"]
[PlyCount "93"]
[EventDate "2024.12.15"]
[EventType "swiss"]
[EventCountry "UAE"]
[SourceTitle "playchess.com"]
[Source "ChessBase"]
[SourceQuality "1"]
[TimeControl "900+10"]

1. d4 {[%emt 0:00:02]} g6 {[%emt 0:00:02]} 2. e4 {[%emt 0:00:02]} Bg7 {[%emt 0:00:01]} 3. Nc3 {[%emt 0:00:01]} c6 {[%emt 0:00:01]} 4. Be3 {[%emt 0:00:03]} b5 {[%emt 0:00:04]} 5. Nf3 {[%emt 0:00:09]} Nf6 {[%emt 0:00:02]} 6. e5 {[%emt 0:15:53]} Ng4 {[%emt 0:00:07]} 7. Bf4 {[%emt 0:00:00]} h5 {[%emt 0:00:29]} 8. h3 {[%emt 0:00:00]} Nh6 {[%emt 0:00:03]} 9. Qd2 {[%emt 0:00:00]} Ng8 {[%emt 0:00:21]} 10. Bd3 {[%emt 0:00:00]} e6 {[%emt 0:00:05]} 11. Ne4 {[%emt 0:00:00]} Bf8 {[%emt 0:00:06]} 12. Bg5 {[%emt 0:00:00]} Qb6 {[%emt 0:00:15]} 13. O-O {[%emt 0:00:00]} c5 {[%emt 0:00:25]} 14. Bf6 {[%emt 0:00:00]} Nxf6 {[%emt 0:00:09]} 15. Nxf6+ {[%emt 0:00:00]} Kd8 {[%emt 0:00:11]} 16. Ng5 {[%emt 0:00:00]} Ke7 {[%emt 0:00:30]} 17. Nge4 {[%emt 0:00:00]} c4 {[%emt 0:00:21]} 18. Qg5 {[%emt 0:00:00]} Bh6 {[%emt 0:00:42]} 19. Nd5+ {[%emt 0:00:00]} Kf8 {[%emt 0:00:15]} 20. Qe7+ {[%emt 0:00:00]} Kg7 {[%emt 0:00:10]} 21. Nxb6 {[%emt 0:00:00]} axb6 {[%emt 0:00:01]} 22. Qf6+ {[%emt 0:00:00]} Kg8 {[%emt 0:00:03]} 23. Nd6 {[%emt 0:00:00]} Rh7 {[%emt 0:00:06]} 24. Nxc8 {[%emt 0:00:00]} cxd3 {[%emt 0:00:04]} 25. cxd3 {[%emt 0:00:00]} Nc6 {[%emt 0:00:05]} 26. Nxb6 {[%emt 0:03:20]} Rd8 {[%emt 0:00:13]} 27. d5 {[%emt 0:00:00]} exd5 {[%emt 0:00:05]} 28. Nxd5 {[%emt 0:00:00]} Bg7 {[%emt 0:00:13]} 29. Qg5 {[%emt 0:00:00]} Bxe5 {[%emt 0:00:29]} 30. Ne7+ {[%emt 0:00:00]} Nxe7 {[%emt 0:00:05]} 31. Qxe7 {[%emt 0:00:00]} Bc7 {[%emt 0:00:10]} 32. Rac1 {[%emt 0:00:00]} f5 {[%emt 0:00:02]} 33. Qg5 {[%emt 0:00:00]} Bb6 {[%emt 0:00:12]} 34. Qxg6+ {[%emt 0:00:00]} Rg7 {[%emt 0:00:01]} 35. Qxb6 {[%emt 0:00:00]} Rf8 {[%emt 0:00:08]} 36. Qh6 {[%emt 0:00:00]} f4 {[%emt 0:00:07]} 37. Rc5 {[%emt 0:00:00]} h4 {[%emt 0:00:12]} 38. Qxg7+ {[%emt 0:00:00]} Kxg7 {[%emt 0:00:04]} 39. Rxb5 {[%emt 0:00:00]} Kg6 {[%emt 0:00:11]} 40. Rb4 {[%emt 0:00:00]} Rf5 {[%emt 0:00:13]} 41. d4 {[%emt 0:00:00]} f3 {[%emt 0:00:06]} 42. gxf3 {[%emt 0:00:00]} Rxf3 {[%emt 0:00:03]} 43. Kg2 {[%emt 0:00:00]} Rf4 {[%emt 0:00:03]} 44. Re1 {[%emt 0:00:00]} Kf6 {[%emt 0:00:04]} 45. f3 {[%emt 0:00:00]} d6 {[%emt 0:00:10]} 46. Re4 {[%emt 0:00:00]} Rxe4 {[%emt 0:00:21] #10} 47. fxe4 {[%emt 0:00:00]} 0-1

[Event "Asian Amateur Rapid 2024"]
[Site "Al Ain"]
[Date "2024.12.15"]
[Round "4.37"]
[White "Abdulla Younes Alkhemeiri"]
[Black "Alymjanov, Mekan"]
[Result "0-1"]
[ECO "D77"]
[WhiteElo "1547"]
[BlackElo "1480"]
[Annotator "NA COMBH"]
[PlyCount "98"]
[EventDate "2024.12.15"]
[EventType "swiss"]
[EventCountry "UAE"]
[SourceTitle "playchess.com"]
[Source "ChessBase"]
[SourceQuality "1"]
[TimeControl "900+10"]

1. b3 {[%emt 0:00:04]} e6 {[%emt 0:00:07]} 2. Nf3 {[%emt 0:00:06]} Nf6 {[%emt 0:00:01]} 3. g3 {[%emt 0:00:05]} g6 {[%emt 0:00:01]} 4. Bb2 {[%emt 0:00:01]} Bg7 {[%emt 0:00:01]} 5. Bg2 {[%emt 0:00:06]} O-O {[%emt 0:00:01]} 6. d4 {[%emt 0:00:10]} d5 {[%emt 0:00:01]} 7. O-O {[%emt 0:00:06]} Nbd7 {[%emt 0:00:01]} 8. Nbd2 {[%emt 0:00:24]} c5 {[%emt 0:00:03]} 9. c4 {[%emt 0:00:56]} b6 {[%emt 0:00:14]} 10. Rc1 {[%emt 0:00:30]} Rb8 {[%emt 0:00:01]} 11. dxc5 {[%emt 0:01:12]} Nxc5 {[%emt 0:00:02]} 12. Ne5 {[%emt 0:00:17]} Bb7 {[%emt 0:00:43]} 13. cxd5 {[%emt 0:00:20]} Nxd5 {[%emt 0:00:06]} 14. Ndf3 {[%emt 0:01:01]} Nb4 {[%emt 0:00:43]} 15. Ba3 {[%emt 0:00:40]} Nxa2 {[%emt 0:01:09]} 16. Rc2 {[%emt 0:00:25]} Bd5 {[%emt 0:00:51]} 17. Rd2 {[%emt 0:02:22]} Nc3 {[%emt 0:00:19]} 18. Qc2 {[%emt 0:00:28]} N3e4 {[%emt 0:00:36]} 19. Rd4 {[%emt 0:02:09]} Nxb3 {[%emt 0:01:19]} 20. Rxe4 {[%emt 0:00:31]} Bxe4 {[%emt 0:00:57]} 21. Qxe4 {[%emt 0:00:02]} Nd2 {[%emt 0:04:14]} 22. Nxd2 {[%emt 0:00:41]} Qxd2 {[%emt 0:00:02]} 23. Bxf8 {[%emt 0:00:12]} Rxf8 {[%emt 0:00:03]} 24. Qd3 {[%emt 0:00:27]} Rd8 {[%emt 0:01:44]} 25. Qxd2 {[%emt 0:00:24]} Rxd2 {[%emt 0:00:01]} 26. Nc6 {[%emt 0:00:12]} a5 {[%emt 0:00:02]} 27. e4 {[%emt 0:00:13]} a4 {[%emt 0:00:17]} 28. e5 {[%emt 0:00:01]} Rc2 {[%emt 0:00:01]} 29. Rb1 {[%emt 0:00:51]} a3 {[%emt 0:00:52]} 30. Nb4 {[%emt 0:00:22]} a2 {[%emt 0:00:05]} 31. Ra1 {[%emt 0:00:30]} Rb2 {[%emt 0:00:28]} 32. Nxa2 {[%emt 0:00:39]} Bxe5 {[%emt 0:00:04]} 33. Re1 {[%emt 0:00:15]} Bd4 {[%emt 0:00:06]} 34. Nc1 {[%emt 0:02:58]} Bxf2+ {[%emt 0:00:01]} 35. Kf1 {[%emt 0:00:01]} Bxe1 {[%emt 0:00:02]} 36. Nd3 {[%emt 0:00:00]} Rxg2 {[%emt 0:00:30]} 37. Kxg2 {[%emt 0:00:05]} Ba5 {[%emt 0:00:02]} 38. Kf2 {[%emt 0:00:04]} b5 {[%emt 0:00:09]} 39. Ke2 {[%emt 0:00:05]} b4 {[%emt 0:00:10]} 40. Kd2 {[%emt 0:00:05]} b3+ {[%emt 0:00:03]} 41. Kc1 {[%emt 0:00:11]} Bc3 {[%emt 0:00:07]} 42. Kb1 {[%emt 0:00:10]} e5 {[%emt 0:00:01]} 43. Nf2 {[%emt 0:00:03]} f5 {[%emt 0:00:03]} 44. Kc1 {[%emt 0:00:06]} e4 {[%emt 0:00:01]} 45. Kd1 {[%emt 0:00:06]} Bd4 {[%emt 0:00:18]} 46. Nh1 {[%emt 0:00:12]} Kf7 {[%emt 0:00:01]} 47. h3 {[%emt 0:00:04]} e3 {[%emt 0:00:02]} 48. g4 {[%emt 0:00:03]} b2 {[%emt 0:00:05]} 49. Kc2 {[%emt 0:00:07] Check Result:-#7} e2 {[%emt 0:00:01]} 0-1

[Event "Asian Amateur Rapid 2024"]
[Site "Al Ain"]
[Date "2024.12.15"]
[Round "4.38"]
[White "Al Riyami, Saeed"]
[Black "Saud Bader Huwair Alzarooni"]
[Result "0-1"]
[ECO "D00"]
[WhiteElo "1426"]
[BlackElo "1644"]
[Annotator "NA COMBH"]
[PlyCount "52"]
[EventDate "2024.12.15"]
[EventType "swiss"]
[EventCountry "UAE"]
[SourceTitle "playchess.com"]
[Source "ChessBase"]
[SourceQuality "1"]
[TimeControl "900+10"]

1. d4 {[%emt 0:00:03]} Nf6 {[%emt 0:00:11]} 2. Nc3 {[%emt 0:00:01]} d5 {[%emt 0:00:15]} 3. Bf4 {[%emt 0:00:03]} e6 {[%emt 0:00:24]} 4. Nf3 {[%emt 0:00:06]} Bd6 {[%emt 0:00:07]} 5. Bg3 {[%emt 0:00:04]} c5 {[%emt 0:00:32]} 6. e3 {[%emt 0:00:23]} a6 {[%emt 0:00:08]} 7. Bd3 {[%emt 0:00:04]} O-O {[%emt 0:00:05]} 8. e4 {[%emt 0:00:40]} dxe4 {[%emt 0:00:55]} 9. Nxe4 {[%emt 0:00:07]} Nxe4 {[%emt 0:00:04]} 10. Bxe4 {[%emt 0:00:02]} Nc6 {[%emt 0:01:45]} 11. O-O {[%emt 0:00:19]} Bxg3 {[%emt 0:00:47]} 12. Bxc6 {[%emt 0:00:21]} Bxh2+ {[%emt 0:00:12]} 13. Nxh2 {[%emt 0:00:17]} bxc6 {[%emt 0:00:03]} 14. c3 {[%emt 0:00:01]} cxd4 {[%emt 0:00:03]} 15. cxd4 {[%emt 0:00:02]} Qd5 {[%emt 0:00:16]} 16. Re1 {[%emt 0:00:31]} Rb8 {[%emt 0:00:01]} 17. Re5 {[%emt 0:00:03]} Qd8 {[%emt 0:00:31]} 18. b3 {[%emt 0:00:11]} Rb4 {[%emt 0:00:15]} 19. Re4 {[%emt 0:00:21]} c5 {[%emt 0:00:14]} 20. Nf3 {[%emt 0:01:17]} cxd4 {[%emt 0:00:02]} 21. Nxd4 {[%emt 0:00:06]} Qd5 {[%emt 0:00:08]} 22. Qd3 {[%emt 0:00:22]} e5 {[%emt 0:00:35]} 23. Rh4 {[%emt 0:00:28]} f5 {[%emt 0:00:13]} 24. Qxa6 {[%emt 0:02:12]} Bxa6 {[%emt 0:00:31]} 25. Nc2 {[%emt 0:00:17]} Bb7 {[%emt 0:00:06]} 26. Nxb4 {[%emt 0:00:05] Check Result:?ev?} Qxg2# {[%emt 0:00:05]} 0-1

[Event "Asian Amateur Rapid 2024"]
[Site "Al Ain"]
[Date "2024.12.15"]
[Round "4.42"]
[White "Muhammad Saleem, Hamad"]
[Black "Amirgali, Zhanali"]
[Result "1-0"]
[ECO "C50"]
[WhiteElo "1577"]
[BlackElo "1497"]
[Annotator "NA COMBH"]
[PlyCount "71"]
[EventDate "2024.12.15"]
[EventType "swiss"]
[EventCountry "UAE"]
[SourceTitle "playchess.com"]
[Source "ChessBase"]
[SourceQuality "1"]
[TimeControl "900+10"]

1. e4 {[%emt 0:00:57]} e5 {[%emt 0:00:01]} 2. Nf3 {[%emt 0:00:02]} Nc6 {[%emt 0:00:01]} 3. Bc4 {[%emt 0:00:03]} Nf6 {[%emt 0:00:01]} 4. d3 {[%emt 0:00:00]} Bc5 {[%emt 0:00:03]} 5. Bg5 {[%emt 0:00:02]} h6 {[%emt 0:00:01]} 6. Bh4 {[%emt 0:00:01]} g5 {[%emt 0:00:01]} 7. Bg3 {[%emt 0:00:01]} d6 {[%emt 0:00:03]} 8. Nc3 {[%emt 0:00:06]} g4 {[%emt 0:00:03]} 9. Nh4 {[%emt 0:00:03]} Nh5 {[%emt 0:00:04]} 10. Nf5 {[%emt 0:00:08]} Bxf5 {[%emt 0:00:05]} 11. exf5 {[%emt 0:00:01]} Nxg3 {[%emt 0:00:06]} 12. hxg3 {[%emt 0:00:01]} Qf6 {[%emt 0:00:02]} 13. Qxg4 {[%emt 0:00:03]} O-O-O {[%emt 0:00:10]} 14. O-O-O {[%emt 0:00:15]} Rdg8 {[%emt 0:00:07]} 15. Qf3 {[%emt 0:00:05]} Nd4 {[%emt 0:00:04]} 16. Qe4 {[%emt 0:00:11]} Nxf5 {[%emt 0:00:12]} 17. Nd5 {[%emt 0:00:01]} Qg5+ {[%emt 0:16:56]} 18. f4 {[%emt 0:16:10]} Nxg3 {[%emt 0:00:00]} 19. fxg5 {[%emt 0:00:00]} Nxe4 {[%emt 0:00:00]} 20. Ne7+ {[%emt 0:00:00]} Kd7 {[%emt 0:00:00]} 21. Nxg8 {[%emt 0:00:00]} Rxg8 {[%emt 0:00:00]} 22. dxe4 {[%emt 0:00:00]} hxg5 {[%emt 0:00:00]} 23. Bxf7 {[%emt 0:00:00]} Rf8 {[%emt 0:00:00]} 24. Rhf1 {[%emt 0:00:00]} Be3+ {[%emt 0:00:00]} 25. Kb1 {[%emt 0:00:00]} Ke7 {[%emt 0:00:00]} 26. Bd5 {[%emt 0:01:20]} Rh8 {[%emt 0:00:00]} 27. Rf7+ {[%emt 0:00:00]} Ke8 {[%emt 0:00:00]} 28. Rxc7 {[%emt 0:00:00]} b6 {[%emt 0:00:00]} 29. Rc8+ {[%emt 0:00:00]} Kd7 {[%emt 0:00:00]} 30. Rxh8 {[%emt 0:00:00]} g4 {[%emt 0:00:00]} 31. Rg8 {[%emt 0:00:00]} b5 {[%emt 0:00:00]} 32. Rxg4 {[%emt 0:00:00]} Bh6 {[%emt 0:00:00]} 33. Rf1 {[%emt 0:00:00]} a5 {[%emt 0:00:00]} 34. Rf7+ {[%emt 0:00:00]} Ke8 {[%emt 0:00:00]} 35. Rg8+ {[%emt 0:00:00]} Bf8 {[%emt 0:00:00] Check Result:?ev?} 36. Rgxf8# {[%emt 0:00:00]} 1-0

[Event "Asian Amateur Rapid 2024"]
[Site "Al Ain"]
[Date "2024.12.15"]
[Round "5.1"]
[White "Vivaan Sachdev"]
[Black "Ahmad, Al Romaithi"]
[Result "0-1"]
[ECO "B22"]
[WhiteElo "1824"]
[BlackElo "1976"]
[Annotator "NA COMBH"]
[PlyCount "108"]
[EventDate "2024.12.15"]
[EventType "swiss"]
[EventCountry "UAE"]
[SourceTitle "playchess.com"]
[Source "ChessBase"]
[SourceQuality "1"]
[TimeControl "900+10"]

1. e4 {[%emt 0:00:08]} c5 {[%emt 0:00:01]} 2. c3 {[%emt 0:00:01]} Nf6 {[%emt 0:00:03]} 3. e5 {[%emt 0:00:02]} Nd5 {[%emt 0:00:01]} 4. Bc4 {[%emt 0:00:01]} Nb6 {[%emt 0:00:05]} 5. Bb3 {[%emt 0:00:01]} d6 {[%emt 0:00:16]} 6. exd6 {[%emt 0:00:04]} Qxd6 {[%emt 0:00:12]} 7. d4 {[%emt 0:00:15]} cxd4 {[%emt 0:01:05]} 8. Nf3 {[%emt 0:00:06]} dxc3 {[%emt 0:01:25]} 9. Qe2 {[%emt 0:00:03]} e6 {[%emt 0:00:54]} 10. Nxc3 {[%emt 0:00:14]} Bd7 {[%emt 0:00:38]} 11. O-O {[%emt 0:02:34]} Be7 {[%emt 0:00:54]} 12. Rd1 {[%emt 0:00:47]} Qc7 {[%emt 0:00:07]} 13. a4 {[%emt 0:00:04]} O-O {[%emt 0:01:13]} 14. a5 {[%emt 0:00:18]} Nc8 {[%emt 0:00:01]} 15. Ne5 {[%emt 0:03:07]} Bd6 {[%emt 0:01:56]} 16. Bf4 {[%emt 0:03:16]} Rd8 {[%emt 0:00:14]} 17. Rac1 {[%emt 0:00:23]} Qxa5 {[%emt 0:00:50]} 18. Nc4 {[%emt 0:02:00]} Qb4 {[%emt 0:01:30]} 19. Bxd6 {[%emt 0:00:23]} Nxd6 {[%emt 0:00:23]} 20. Rxd6 {[%emt 0:01:15]} Qxb3 {[%emt 0:00:04]} 21. Rcd1 {[%emt 0:00:07]} Rc8 {[%emt 0:00:15]} 22. Na5 {[%emt 0:01:45]} Qb4 {[%emt 0:00:21]} 23. Qf3 {[%emt 0:00:12]} Qxa5 {[%emt 0:00:41]} 24. Qxb7 {[%emt 0:00:05]} Qc7 {[%emt 0:00:20]} 25. Qxa8 {[%emt 0:00:46]} Bc6 {[%emt 0:00:15]} 26. Rxc6 {[%emt 0:00:09]} Nxc6 {[%emt 0:00:48]} 27. Nb5 {[%emt 0:00:01]} Qxh2+ {[%emt 0:00:47]} 28. Kxh2 {[%emt 0:00:07]} Rxa8 {[%emt 0:00:02]} 29. Rd7 {[%emt 0:00:14]} g5 {[%emt 0:00:18]} 30. Rc7 {[%emt 0:00:19]} Ne5 {[%emt 0:00:39]} 31. Nxa7 {[%emt 0:00:30]} Rb8 {[%emt 0:00:09]} 32. Rc5 {[%emt 0:00:12]} f6 {[%emt 0:00:18]} 33. Rc2 {[%emt 0:00:52]} Nd3 {[%emt 0:00:13]} 34. Rd2 {[%emt 0:00:05]} Nxb2 {[%emt 0:00:10]} 35. Nc6 {[%emt 0:00:02]} Rb6 {[%emt 0:00:17]} 36. Rd8+ {[%emt 0:00:07]} Kg7 {[%emt 0:00:07]} 37. Rd7+ {[%emt 0:00:01]} Kh6 {[%emt 0:00:13]} 38. Ne7 {[%emt 0:00:10]} f5 {[%emt 0:00:28]} 39. Ng8+ {[%emt 0:00:02]} Kg6 {[%emt 0:00:02]} 40. Ne7+ {[%emt 0:00:01]} Kf6 {[%emt 0:00:03]} 41. Ng8+ {[%emt 0:00:01]} Kg6 {[%emt 0:00:17]} 42. Ne7+ {[%emt 0:00:04]} Kf6 {[%emt 0:00:50]} 43. Ng8+ {[%emt 0:00:02]} Ke5 {[%emt 0:00:02]} 44. Rxh7 {[%emt 0:00:04]} Nd3 {[%emt 0:00:03]} 45. f3 {[%emt 0:00:16]} Rb2 {[%emt 0:00:06]} 46. Rg7 {[%emt 0:00:04]} Ne1 {[%emt 0:00:06]} 47. Kg1 {[%emt 0:01:08]} Nxg2 {[%emt 0:00:08]} 48. Rxg5 {[%emt 0:00:02]} Nh4 {[%emt 0:03:20]} 49. Rg3 {[%emt 0:00:33]} Kf4 {[%emt 0:00:00]} 50. Rh3 {[%emt 0:00:03]} Nxf3+ {[%emt 0:00:00]} 51. Kf1 {[%emt 0:00:14]} Rb1+ {[%emt 0:00:00]} 52. Kf2 {[%emt 0:00:01]} Rb2+ {[%emt 0:00:00]} 53. Kf1 {[%emt 0:00:01]} Ke3 {[%emt 0:00:00]} 54. Rh6 {[%emt 0:00:15] Check Result:?ev?} Rf2# {[%emt 0:00:00]} 0-1